Workbook

Sheet الرئيسية
E1: متابعة كمية المحروقات
E3: الكمية المستلمة | G3: الكمية المصروفة
E4: =SUM(شهر1!E2+شهر2!E2+شهر3!E2+شهر4!E2+شهر5!E2+شهر6!E2+شهر7!E2+شهر8!E2+شهر9!E2+شهر10!E2+شهر11!E2+شهر12!E2) -> 6552 | G4: =SUM(شهر1!H2+شهر2!H2+شهر3!H2+شهر4!H2+شهر5!H2+شهر6!H2+شهر7!H2+شهر8!H2+شهر9!H2+شهر10!H2+شهر11!H2+شهر12!H2) -> 5642
E6: المتبقي
E7: =E4-G4 -> 910
A10: الشهر | C10: خالد | D10: محمد | E10: عبدالله | F10: عواض | G10: مرزووق | H10: راشد | I10: الصبحي | J10: إبراهيم
A11: محرم | C11: =شهر1!D34 -> 0 | D11: =شهر1!$E$34 -> 0 | E11: =شهر1!$F$34 -> 0 | F11: =شهر1!$G$34 -> 0 | G11: =شهر1!$H$34 -> 0 | H11: =شهر1!$I$34 -> 0 | I11: =شهر1!$J$34 -> 0 | J11: =شهر1!$K$34 -> 0
A12: صفر | C12: =شهر2!D35 -> 0 | D12: =شهر2!$E$34 -> 0 | E12: =شهر2!$F$34 -> 0 | F12: =شهر2!$G$34 -> 0 | G12: =شهر2!$H$34 -> 0 | H12: =شهر2!$I$34 -> 0 | I12: =شهر2!$J$34 -> 0 | J12: =شهر2!$K$34 -> 0
A13: ربيع الاول | C13: =شهر2!D36 -> 0 | D13: =شهر3!$E$34 -> 0 | E13: =شهر3!$F$34 -> 0 | F13: =شهر3!$G$34 -> 0 | G13: =شهر3!$H$34 -> 0 | H13: =شهر3!$I$34 -> 0 | I13: =شهر3!$J$34 -> 0 | J13: =شهر3!$K$34 -> 0
A14: ربيع الثاني | C14: =شهر2!D37 -> 0 | D14: =شهر4!$E$34 -> 0 | E14: =شهر4!$F$34 -> 0 | F14: =شهر4!$G$34 -> 0 | G14: =شهر4!$H$34 -> 0 | H14: =شهر4!$I$34 -> 0 | I14: =شهر4!$J$34 -> 0 | J14: =شهر4!$K$34 -> 0
A15: جمادى الاولى | C15: =شهر2!D38 -> 0 | D15: =شهر5!$E$34 -> 0 | E15: =شهر5!$F$34 -> 0 | F15: =شهر5!$G$34 -> 0 | G15: =شهر5!$H$34 -> 0 | H15: =شهر5!$I$34 -> 0 | I15: =شهر5!$J$34 -> 0 | J15: =شهر5!$K$34 -> 0
A16: جمادى الثانية | C16: =شهر2!D39 -> 0 | D16: =شهر6!$E$34 -> 0 | E16: =شهر6!$F$34 -> 0 | F16: =شهر6!$G$34 -> 0 | G16: =شهر6!$H$34 -> 400 | H16: =شهر6!$I$34 -> 0 | I16: =شهر6!$J$34 -> 0 | J16: =شهر6!$K$34 -> 0
A17: رجب | C17: =شهر2!D40 -> 0 | D17: =شهر7!$E$34 -> 0 | E17: =شهر7!$F$34 -> 100 | F17: =شهر7!$G$34 -> 750 | G17: =شهر7!$H$34 -> 0 | H17: =شهر7!$I$34 -> 0 | I17: =شهر7!$J$34 -> 0 | J17: =شهر7!$K$34 -> 90
A18: شعبان | C18: =شهر2!D41 -> 0 | D18: =شهر8!$E$34 -> 0 | E18: =شهر8!$F$34 -> 220 | F18: =شهر8!$G$34 -> 829 | G18: =شهر8!$H$34 -> 800 | H18: =شهر8!$I$34 -> 300 | I18: =شهر8!$J$34 -> 98 | J18: =شهر8!$K$34 -> 145
A19: رمضان | C19: =شهر2!D42 -> 0 | D19: =شهر9!$E$34 -> 200 | E19: =شهر9!$F$34 -> 210 | F19: =شهر9!$G$34 -> 400 | G19: =شهر9!$H$34 -> 0 | H19: =شهر9!$I$34 -> 600 | I19: =شهر9!$J$34 -> 90 | J19: =شهر9!$K$34 -> 80
A20: شوال | C20: =شهر2!D43 -> 0 | D20: =شهر10!$E$34 -> 0 | E20: =شهر10!$F$34 -> 0 | F20: =شهر10!$G$34 -> 0 | G20: =شهر10!$H$34 -> 0 | H20: =شهر10!$I$34 -> 0 | I20: =شهر10!$J$34 -> 0 | J20: =شهر10!$K$34 -> 0
A21: ذو القعدة | C21: =شهر2!D44 -> 0 | D21: =شهر11!$E$34 -> 0 | E21: =شهر11!$F$34 -> 0 | F21: =شهر11!$G$34 -> 0 | G21: =شهر11!$H$34 -> 0 | H21: =شهر11!$I$34 -> 0 | I21: =شهر11!$J$34 -> 0 | J21: =شهر11!$K$34 -> 0
A22: ذو الحجة | C22: =شهر2!D45 -> 0 | D22: =شهر12!$E$34 -> 0 | E22: =شهر12!$F$34 -> 0 | F22: =شهر12!$G$34 -> 0 | G22: =شهر12!$H$34 -> 0 | H22: =شهر12!$I$34 -> 0 | I22: =شهر12!$J$34 -> 0 | J22: =شهر12!$K$34 -> 0

Sheet شهر1
A1: من تاريخ 1440/01/01 هـ إلى تاريخ 1440/01/30
A2: الرصيد السابق | D2: المصروف | E2: =C34 -> 0 | F2: المستهلك | H2: =SUM(D4:K33) -> 0 | I2: المتبقي | K2: =C2+E2-H2 -> 0
A3: ت | B3: تاريخ الصرف | C3: المصروف | D3: خالد | E3: محمد | F3: عبدالله | G3: عواض | H3: مرزووق | I3: راشد | J3: الصبحي | K3: إبراهيم
A4: 1 | B4: 1440/01/01 | C4: 0
A5: 2 | B5: 1440/01/02
A6: 3 | B6: 1440/01/03
A7: 4 | B7: 1440/01/04
A8: 5 | B8: 1440/01/05
A9: 6 | B9: 1440/01/06
A10: 7 | B10: 1440/01/07
A11: 8 | B11: 1440/01/08
A12: 9 | B12: 1440/01/09
A13: 10 | B13: 1440/01/10
A14: 11 | B14: 1440/01/11
A15: 12 | B15: 1440/01/12
A16: 13 | B16: 1440/01/13
A17: =A16+1 -> 14 | B17: 1440/01/14
A18: =A17+1 -> 15 | B18: 1440/01/15
A19: 16 | B19: 1440/01/16
A20: 17 | B20: 1440/01/17
A21: 18 | B21: 1440/01/18
A22: 19 | B22: 1440/01/19
A23: 20 | B23: 1440/01/20
A24: 21 | B24: 1440/01/21
A25: 22 | B25: 1440/01/22
A26: 23 | B26: 1440/01/23
A27: 24 | B27: 1440/01/24
A28: 25 | B28: 1440/01/25
A29: 26 | B29: 1440/01/26
A30: 27 | B30: 1440/01/27
A31: 28 | B31: 1440/01/28
A32: 29 | B32: 1440/01/29
A33: 30 | B33: 1440/01/30
A34: المجموع | C34: =SUM(C4:C33) -> 0 | D34: 0 | E34: 0 | F34: 0 | G34: 0 | H34: 0 | I34: 0 | J34: 0 | K34: 0

Sheet شهر2
A1: من تاريخ 1440/02/01 هـ إلى تاريخ 1440/02/30
A2: الرصيد السابق | C2: =شهر1!K2 -> 0 | D2: المصروف | E2: =SUM(C4:C33) -> 0 | F2: المستهلك | H2: =SUM(D4:K33) -> 0 | I2: المتبقي | K2: =C2+E2-H2 -> 0
A3: ت | B3: تاريخ الصرف | C3: المصروف | D3: خالد | E3: محمد | F3: عبدالله | G3: عواض | H3: مرزووق | I3: راشد | J3: الصبحي | K3: إبراهيم
A4: 1 | B4: 1440/02/01 | C4: 0
A5: 2 | B5: 1440/02/02
A6: 3 | B6: 1440/02/03
A7: 4 | B7: 1440/02/04
A8: 5 | B8: 1440/02/05
A9: 6 | B9: 1440/02/06
A10: 7 | B10: 1440/02/07
A11: 8 | B11: 1440/02/08
A12: 9 | B12: 1440/02/09
A13: 10 | B13: 1440/02/10
A14: 11 | B14: 1440/02/11
A15: 12 | B15: 1440/02/12
A16: 13 | B16: 1440/02/13
A17: =A16+1 -> 14 | B17: 1440/02/14
A18: =A17+1 -> 15 | B18: 1440/02/15
A19: 16 | B19: 1440/02/16
A20: 17 | B20: 1440/02/17
A21: 18 | B21: 1440/02/18
A22: 19 | B22: 1440/02/19
A23: 20 | B23: 1440/02/20
A24: 21 | B24: 1440/02/21
A25: 22 | B25: 1440/02/22
A26: 23 | B26: 1440/02/23
A27: 24 | B27: 1440/02/24
A28: 25 | B28: 1440/02/25
A29: 26 | B29: 1440/02/26
A30: 27 | B30: 1440/02/27
A31: 28 | B31: 1440/02/28
A32: 29 | B32: 1440/02/29
A33: 30 | B33: 1440/02/30
A34: المجموع | C34: =SUM(C4:C33) -> 0 | D34: 0 | E34: 0 | F34: 0 | G34: 0 | H34: 0 | I34: 0 | J34: 0 | K34: 0

Sheet شهر3
A1: من تاريخ 1440/03/01 هـ إلى تاريخ 1440/03/30
A2: الرصيد السابق | C2: =شهر2!K2 -> 0 | D2: المصروف | E2: =SUM(C4:C33) -> 0 | F2: المستهلك | H2: =SUM(D4:K33) -> 0 | I2: المتبقي | K2: =C2+E2-H2 -> 0
A3: ت | B3: تاريخ الصرف | C3: المصروف | D3: خالد | E3: محمد | F3: عبدالله | G3: عواض | H3: مرزووق | I3: راشد | J3: الصبحي | K3: إبراهيم
A4: 1 | B4: 1440/03/01 | C4: 0
A5: 2 | B5: 1440/03/02
A6: 3 | B6: 1440/03/03
A7: 4 | B7: 1440/03/04
A8: 5 | B8: 1440/03/05
A9: 6 | B9: 1440/03/06
A10: 7 | B10: 1440/03/07
A11: 8 | B11: 1440/03/08
A12: 9 | B12: 1440/03/09
A13: 10 | B13: 1440/03/10
A14: 11 | B14: 1440/03/11
A15: 12 | B15: 1440/03/12
A16: 13 | B16: 1440/03/13
A17: =A16+1 -> 14 | B17: 1440/03/14
A18: =A17+1 -> 15 | B18: 1440/03/15
A19: 16 | B19: 1440/03/16
A20: 17 | B20: 1440/03/17
A21: 18 | B21: 1440/03/18
A22: 19 | B22: 1440/03/19
A23: 20 | B23: 1440/03/20
A24: 21 | B24: 1440/03/21
A25: 22 | B25: 1440/03/22
A26: 23 | B26: 1440/03/23
A27: 24 | B27: 1440/03/24
A28: 25 | B28: 1440/03/25
A29: 26 | B29: 1440/03/26
A30: 27 | B30: 1440/03/27
A31: 28 | B31: 1440/03/28
A32: 29 | B32: 1440/03/29
A33: 30 | B33: 1440/03/30
A34: المجموع | C34: =SUM(C4:C33) -> 0 | D34: 0 | E34: 0 | F34: 0 | G34: 0 | H34: 0 | I34: 0 | J34: 0 | K34: 0

Sheet شهر4
A1: من تاريخ 1440/04/01 هـ إلى تاريخ 1440/04/30
A2: الرصيد السابق | C2: =شهر3!K2 -> 0 | D2: المصروف | E2: =SUM(C4:C33) -> 0 | F2: المستهلك | H2: =SUM(D4:K33) -> 0 | I2: المتبقي | K2: =C2+E2-H2 -> 0
A3: ت | B3: تاريخ الصرف | C3: المصروف | D3: خالد | E3: محمد | F3: عبدالله | G3: عواض | H3: مرزووق | I3: راشد | J3: الصبحي | K3: إبراهيم
A4: 1 | B4: 1440/04/01
A5: 2 | B5: 1440/04/02 | C5: 0
A6: 3 | B6: 1440/04/03
A7: 4 | B7: 1440/04/04
A8: 5 | B8: 1440/04/05
A9: 6 | B9: 1440/04/06
A10: 7 | B10: 1440/04/07
A11: 8 | B11: 1440/04/08
A12: 9 | B12: 1440/04/09
A13: 10 | B13: 1440/04/10
A14: 11 | B14: 1440/04/11
A15: 12 | B15: 1440/04/12
A16: 13 | B16: 1440/04/13
A17: =A16+1 -> 14 | B17: 1440/04/14
A18: =A17+1 -> 15 | B18: 1440/04/15
A19: 16 | B19: 1440/04/16
A20: 17 | B20: 1440/04/17
A21: 18 | B21: 1440/04/18
A22: 19 | B22: 1440/04/19
A23: 20 | B23: 1440/04/20
A24: 21 | B24: 1440/04/21
A25: 22 | B25: 1440/04/22
A26: 23 | B26: 1440/04/23
A27: 24 | B27: 1440/04/24
A28: 25 | B28: 1440/04/25
A29: 26 | B29: 1440/04/26
A30: 27 | B30: 1440/04/27
A31: 28 | B31: 1440/04/28
A32: 29 | B32: 1440/04/29
A33: 30 | B33: 1440/04/30
A34: المجموع | C34: =SUM(C4:C33) -> 0 | D34: 0 | E34: 0 | F34: 0 | G34: 0 | H34: 0 | I34: 0 | J34: 0 | K34: 0

Sheet شهر5
A1: من تاريخ 1440/05/01 هـ إلى تاريخ 1440/05/30
A2: الرصيد السابق | C2: =شهر4!K2 -> 0 | D2: المصروف | E2: =SUM(C4:C33) -> 0 | F2: المستهلك | H2: =SUM(D4:K33) -> 0 | I2: المتبقي | K2: =C2+E2-H2 -> 0
A3: ت | B3: تاريخ الصرف | C3: المصروف | D3: خالد | E3: محمد | F3: عبدالله | G3: عواض | H3: مرزووق | I3: راشد | J3: الصبحي | K3: إبراهيم
A4: 1 | B4: 1440/05/01
A5: 2 | B5: 1440/05/02
A6: 3 | B6: 1440/05/03
A7: 4 | B7: 1440/05/04
A8: 5 | B8: 1440/05/05
A9: 6 | B9: 1440/05/06
A10: 7 | B10: 1440/05/07
A11: 8 | B11: 1440/05/08
A12: 9 | B12: 1440/05/09
A13: 10 | B13: 1440/05/10
A14: 11 | B14: 1440/05/11
A15: 12 | B15: 1440/05/12
A16: 13 | B16: 1440/05/13
A17: =A16+1 -> 14 | B17: 1440/05/14
A18: =A17+1 -> 15 | B18: 1440/05/15
A19: 16 | B19: 1440/05/16
A20: 17 | B20: 1440/05/17
A21: 18 | B21: 1440/05/18
A22: 19 | B22: 1440/05/19
A23: 20 | B23: 1440/05/20
A24: 21 | B24: 1440/05/21
A25: 22 | B25: 1440/05/22
A26: 23 | B26: 1440/05/23
A27: 24 | B27: 1440/05/24
A28: 25 | B28: 1440/05/25
A29: 26 | B29: 1440/05/26
A30: 27 | B30: 1440/05/27
A31: 28 | B31: 1440/05/28
A32: 29 | B32: 1440/05/29
A33: 30 | B33: 1440/05/30
A34: المجموع | C34: =SUM(C4:C33) -> 0 | D34: 0 | E34: 0 | F34: 0 | G34: 0 | H34: 0 | I34: 0 | J34: 0 | K34: 0

Sheet شهر6
A1: من تاريخ 1440/06/01 هـ إلى تاريخ 1440/06/30
A2: الرصيد السابق | C2: =شهر5!K2 -> 0 | D2: المصروف | E2: =SUM(C4:C33) -> 450 | F2: المستهلك | H2: =SUM(D4:K33) -> 400 | I2: المتبقي | K2: =C2+E2-H2 -> 50
A3: ت | B3: تاريخ الصرف | C3: المصروف | D3: خالد | E3: محمد | F3: عبدالله | G3: عواض | H3: مرزووق | I3: راشد | J3: الصبحي | K3: إبراهيم
A4: 1 | B4: 1440/06/01
A5: 2 | B5: 1440/06/02
A6: 3 | B6: 1440/06/03
A7: 4 | B7: 1440/06/04
A8: 5 | B8: 1440/06/05
A9: 6 | B9: 1440/06/06
A10: 7 | B10: 1440/06/07
A11: 8 | B11: 1440/06/08
A12: 9 | B12: 1440/06/09
A13: 10 | B13: 1440/06/10
A14: 11 | B14: 1440/06/11
A15: 12 | B15: 1440/06/12
A16: 13 | B16: 1440/06/13
A17: =A16+1 -> 14 | B17: 1440/06/14
A18: =A17+1 -> 15 | B18: 1440/06/15
A19: 16 | B19: 1440/06/16
A20: 17 | B20: 1440/06/17
A21: 18 | B21: 1440/06/18
A22: 19 | B22: 1440/06/19
A23: 20 | B23: 1440/06/20
A24: 21 | B24: 1440/06/21
A25: 22 | B25: 1440/06/22
A26: 23 | B26: 1440/06/23
A27: 24 | B27: 1440/06/24
A28: 25 | B28: 1440/06/25
A29: 26 | B29: 1440/06/26 | C29: 400 | H29: 400
A30: 27 | B30: 1440/06/27 | C30: 50
A31: 28 | B31: 1440/06/28
A32: 29 | B32: 1440/06/29
A33: 30 | B33: 1440/06/30
A34: المجموع | C34: =SUM(C4:C33) -> 450 | D34: 0 | E34: 0 | F34: 0 | G34: 0 | H34: 400 | I34: 0 | J34: 0 | K34: 0

Sheet شهر7
A1: من تاريخ 1440/07/01 هـ إلى تاريخ 1440/07/30
A2: الرصيد السابق | C2: =شهر6!K2 -> 50 | D2: المصروف | E2: =SUM(C4:C33) -> 1545 | F2: المستهلك | H2: =SUM(D4:K33) -> 1270 | I2: المتبقي | K2: =C2+E2-H2 -> 325
A3: ت | B3: تاريخ الصرف | C3: المصروف | D3: خالد | E3: محمد | F3: عبدالله | G3: عواض | H3: مرزووق | I3: راشد | J3: الصبحي | K3: إبراهيم
A4: 1 | B4: 1440/07/01 | C4: 400
A5: 2 | B5: 1440/07/02
A6: 3 | B6: 1440/07/03 | F6: 50
A7: 4 | B7: 1440/07/04
A8: 5 | B8: 1440/07/05 | F8: 50 | G8: 50
A9: 6 | B9: 1440/07/06
A10: 7 | B10: 1440/07/07
A11: 8 | B11: 1440/07/08 | G11: 100
A12: 9 | B12: 1440/07/09
A13: 10 | B13: 1440/07/10
A14: 11 | B14: 1440/07/11
A15: 12 | B15: 1440/07/12
A16: 13 | B16: 1440/07/13 | G16: 100
A17: =A16+1 -> 14 | B17: 1440/07/14 | C17: 400 | D17: 50 | K17: 50
A18: =A17+1 -> 15 | B18: 1440/07/15
A19: 16 | B19: 1440/07/16
A20: 17 | B20: 1440/07/17 | G20: 100
A21: 18 | B21: 1440/07/18
A22: 19 | B22: 1440/07/19 | D22: 80
A23: 20 | B23: 1440/07/20 | C23: 200 | G23: 150
A24: 21 | B24: 1440/07/21 | C24: 200 | D24: 100
A25: 22 | B25: 1440/07/22
A26: 23 | B26: 1440/07/23
A27: 24 | B27: 1440/07/24
A28: 25 | B28: 1440/07/25 | D28: 50 | G28: 110 | K28: 40
A29: 26 | B29: 1440/07/26
A30: 27 | B30: 1440/07/27 | D30: 50
A31: 28 | B31: 1440/07/28 | C31: 345 | G31: 140
A32: 29 | B32: 1440/07/29
A33: 30 | B33: 1440/07/30
A34: المجموع | C34: =SUM(C4:C33) -> 1545 | D34: 330 | E34: 0 | F34: 100 | G34: 750 | H34: 0 | I34: 0 | J34: 0 | K34: 90

Sheet شهر8
A1: من تاريخ 1440/08/01 هـ إلى تاريخ 1440/08/30
A2: الرصيد السابق | C2: =شهر7!K2 -> 325 | D2: المصروف | E2: =SUM(C4:C33) -> 2547 | F2: المستهلك | H2: =SUM(D4:K33) -> 2392 | I2: المتبقي | K2: =C2+E2-H2 -> 480
A3: ت | B3: تاريخ الصرف | C3: المصروف | D3: خالد | E3: محمد | F3: عبدالله | G3: عواض | H3: مرزووق | I3: راشد | J3: الصبحي | K3: إبراهيم
A4: 1 | B4: 1440/08/01 | O4: =SUM(C4:C33) -> 2547
A5: 2 | B5: 1440/08/02 | O5: =SUM(D4:K33) -> 2392
A6: 3 | B6: 1440/08/03 | C6: 500 | G6: 157 | H6: 400 | K6: 100
A7: 4 | B7: 1440/08/04
A8: 5 | B8: 1440/08/05 | N8: =SUM(C4:C33) -> 2547
A9: 6 | B9: 1440/08/06 | N9: =SUM(F4:K33) -> 2392
A10: 7 | B10: 1440/08/07
A11: 8 | B11: 1440/08/08 | G11: 100
A12: 9 | B12: 1440/08/09 | C12: 250
A13: 10 | B13: 1440/08/10
A14: 11 | B14: 1440/08/11 | F14: 100
A15: 12 | B15: 1440/08/12
A16: 13 | B16: 1440/08/13
A17: =A16+1 -> 14 | B17: 1440/08/14 | G17: 100
A18: =A17+1 -> 15 | B18: 1440/08/15
A19: 16 | B19: 1440/08/16
A20: 17 | B20: 1440/08/17
A21: 18 | B21: 1440/08/18 | C21: 90
A22: 19 | B22: 1440/08/19 | C22: 225 | G22: 100 | K22: 45
A23: 20 | B23: 1440/08/20 | C23: 882
A24: 21 | B24: 1440/08/21 | F24: 90 | G24: 64
A25: 22 | B25: 1440/08/22
A26: 23 | B26: 1440/08/23 | I26: 100
A27: 24 | B27: 1440/08/24 | F27: 30
A28: 25 | B28: 1440/08/25 | G28: 148 | I28: 200
A29: 26 | B29: 1440/08/26
A30: 27 | B30: 1440/08/27
A31: 28 | B31: 1440/08/28
A32: 29 | B32: 1440/08/29 | G32: 160
A33: 30 | B33: 1440/08/30 | C33: 600 | H33: 400 | J33: 98
A34: المجموع | C34: =SUM(C4:C33) -> 2547 | D34: 0 | E34: 0 | F34: 220 | G34: 829 | H34: 800 | I34: 300 | J34: 98 | K34: 145

Sheet شهر9
A1: من تاريخ 1440/09/01 هـ إلى تاريخ 1440/09/30
A2: الرصيد السابق | C2: =شهر8!K2 -> 480 | D2: المصروف | E2: =SUM(C4:C33) -> 2010 | F2: المستهلك | H2: =SUM(D4:K33) -> 1580 | I2: المتبقي | K2: =C2+E2-H2 -> 910
A3: ت | B3: تاريخ الصرف | C3: المصروف | D3: خالد | E3: محمد | F3: عبدالله | G3: عواض | H3: مرزووق | I3: راشد | J3: الصبحي | K3: إبراهيم
A4: 1 | B4: 1440/09/01 | F4: 30 | O4: =SUM(C4:C33) -> 2010
A5: 2 | B5: 1440/09/02 | F5: 60 | G5: 60 | I5: 60 | O5: =SUM(D4:K33) -> 1580
A6: 3 | B6: 1440/09/03 | C6: 900 | E6: 100 | K6: 50
A7: 4 | B7: 1440/09/04 | F7: 60 | G7: 30
A8: 5 | B8: 1440/09/05 | G8: 165 | N8: =SUM(C4:C33) -> 2010
A9: 6 | B9: 1440/09/06 | N9: =SUM(F4:K33) -> 1380
A10: 7 | B10: 1440/09/07 | E10: 100 | I10: 210 | J10: 90
A11: 8 | B11: 1440/09/08
A12: 9 | B12: 1440/09/09 | C12: 1110 | G12: 145
A13: 10 | B13: 1440/09/10 | K13: 30
A14: 11 | B14: 1440/09/11 | F14: 60 | I14: 330
A15: 12 | B15: 1440/09/12
A16: 13 | B16: 1440/09/13
A17: =A16+1 -> 14 | B17: 1440/09/14
A18: =A17+1 -> 15 | B18: 1440/09/15
A19: 16 | B19: 1440/09/16
A20: 17 | B20: 1440/09/17
A21: 18 | B21: 1440/09/18
A22: 19 | B22: 1440/09/19
A23: 20 | B23: 1440/09/20
A24: 21 | B24: 1440/09/21
A25: 22 | B25: 1440/09/22
A26: 23 | B26: 1440/09/23
A27: 24 | B27: 1440/09/24
A28: 25 | B28: 1440/09/25
A29: 26 | B29: 1440/09/26
A30: 27 | B30: 1440/09/27
A31: 28 | B31: 1440/09/28
A32: 29 | B32: 1440/09/29
A33: 30 | B33: 1440/09/30
A34: المجموع | C34: =SUM(C4:C33) -> 2010 | D34: 0 | E34: 200 | F34: 210 | G34: 400 | H34: 0 | I34: 600 | J34: 90 | K34: 80

Sheet شهر10
A1: من تاريخ 1440/10/01 هـ إلى تاريخ 1440/10/30
A2: الرصيد السابق | C2: =شهر9!K2 -> 910 | D2: المصروف | E2: =SUM(C4:C33) -> 0 | F2: المستهلك | H2: =SUM(D4:K33) -> 0 | I2: المتبقي | K2: =C2+E2-H2 -> 910
A3: ت | B3: تاريخ الصرف | C3: المصروف | D3: خالد | E3: محمد | F3: عبدالله | G3: عواض | H3: مرزووق | I3: راشد | J3: الصبحي | K3: إبراهيم
A4: 1 | B4: 1440/09/01
A5: 2 | B5: 1440/09/02
A6: 3 | B6: 1440/09/03
A7: 4 | B7: 1440/09/07
A8: 5 | B8: 1440/09/08
A9: 6 | B9: 1440/09/09
A10: 7 | B10: 1440/09/10
A11: 8 | B11: 1440/09/11
A12: 9 | B12: 1440/09/12
A13: 10 | B13: 1440/09/13
A14: 11 | B14: 1440/09/14
A15: 12 | B15: 1440/09/15
A16: 13 | B16: 1440/09/16
A17: =A16+1 -> 14 | B17: 1440/09/17
A18: =A17+1 -> 15 | B18: 1440/09/18
A19: 16 | B19: 1440/09/19
A20: 17 | B20: 1440/09/20
A21: 18 | B21: 1440/09/21
A22: 19 | B22: 1440/09/22
A23: 20 | B23: 1440/09/23
A24: 21 | B24: 1440/09/24
A25: 22 | B25: 1440/09/25
A26: 23 | B26: 1440/09/26
A27: 24 | B27: 1440/09/27
A28: 25 | B28: 1440/09/28
A29: 26 | B29: 1440/09/29
A30: 27 | B30: 1440/09/30
A31: 28 | B31: 1440/10/01
A32: 29 | B32: 1440/10/02
A33: 30 | B33: 1440/10/03
A34: المجموع | C34: =SUM(C4:C33) -> 0 | D34: 0 | E34: 0 | F34: 0 | G34: 0 | H34: 0 | I34: 0 | J34: 0 | K34: 0

Sheet شهر11
A1: من تاريخ 1440/11/01 هـ إلى تاريخ 1440/11/30
A2: الرصيد السابق | C2: =شهر10!K2 -> 910 | D2: المصروف | E2: =SUM(C4:C33) -> 0 | F2: المستهلك | H2: =SUM(D4:K33) -> 0 | I2: المتبقي | K2: =C2+E2-H2 -> 910
A3: ت | B3: تاريخ الصرف | C3: المصروف | D3: خالد | E3: محمد | F3: عبدالله | G3: عواض | H3: مرزووق | I3: راشد | J3: الصبحي | K3: إبراهيم
A4: 1 | B4: 1440/09/01 | O4: =SUM(C4:C33) -> 0
A5: 2 | B5: 1440/09/02 | O5: =SUM(D4:K33) -> 0
A6: 3 | B6: 1440/09/03
A7: 4 | B7: 1440/09/07
A8: 5 | B8: 1440/09/08 | N8: =SUM(C4:C33) -> 0
A9: 6 | B9: 1440/09/09 | N9: =SUM(F4:K33) -> 0
A10: 7 | B10: 1440/09/10
A11: 8 | B11: 1440/09/11
A12: 9 | B12: 1440/09/12
A13: 10 | B13: 1440/09/13
A14: 11 | B14: 1440/09/14
A15: 12 | B15: 1440/09/15
A16: 13 | B16: 1440/09/16
A17: =A16+1 -> 14 | B17: 1440/09/17
A18: =A17+1 -> 15 | B18: 1440/09/18
A19: 16 | B19: 1440/09/19
A20: 17 | B20: 1440/09/20
A21: 18 | B21: 1440/09/21
A22: 19 | B22: 1440/09/22
A23: 20 | B23: 1440/09/23
A24: 21 | B24: 1440/09/24
A25: 22 | B25: 1440/09/25
A26: 23 | B26: 1440/09/26
A27: 24 | B27: 1440/09/27
A28: 25 | B28: 1440/09/28
A29: 26 | B29: 1440/09/29
A30: 27 | B30: 1440/09/30
A31: 28 | B31: 1440/10/01
A32: 29 | B32: 1440/10/02
A33: 30 | B33: 1440/10/03
A34: المجموع | C34: =SUM(C4:C33) -> 0 | D34: 0 | E34: 0 | F34: 0 | G34: 0 | H34: 0 | I34: 0 | J34: 0 | K34: 0

Sheet شهر12
A1: من تاريخ 1440/12/01 هـ إلى تاريخ 1441/12/30
A2: الرصيد السابق | C2: =شهر11!K2 -> 910 | D2: المصروف | E2: =SUM(C4:C33) -> 0 | F2: المستهلك | H2: =SUM(D4:K33) -> 0 | I2: المتبقي | K2: =C2+E2-H2 -> 910
A3: ت | B3: تاريخ الصرف | C3: المصروف | D3: مدير الادارة | E3: خالد | F3: محمد | G3: عبدالله | H3: عواض | I3: مرزووق | J3: راشد | K3: الصبحي | L3: إبراهيم
A4: 1 | B4: 1440/09/01 | O4: =SUM(C4:C33) -> 0
A5: 2 | B5: 1440/09/02 | O5: =SUM(D4:K33) -> 0
A6: 3 | B6: 1440/09/03
A7: 4 | B7: 1440/09/07
A8: 5 | B8: 1440/09/08 | N8: =SUM(C4:C33) -> 0
A9: 6 | B9: 1440/09/09 | N9: =SUM(F4:K33) -> 0
A10: 7 | B10: 1440/09/10
A11: 8 | B11: 1440/09/11
A12: 9 | B12: 1440/09/12
A13: 10 | B13: 1440/09/13
A14: 11 | B14: 1440/09/14
A15: 12 | B15: 1440/09/15
A16: 13 | B16: 1440/09/16
A17: =A16+1 -> 14 | B17: 1440/09/17
A18: =A17+1 -> 15 | B18: 1440/09/18
A19: 16 | B19: 1440/09/19
A20: 17 | B20: 1440/09/20
A21: 18 | B21: 1440/09/21
A22: 19 | B22: 1440/09/22
A23: 20 | B23: 1440/09/23
A24: 21 | B24: 1440/09/24
A25: 22 | B25: 1440/09/25
A26: 23 | B26: 1440/09/26
A27: 24 | B27: 1440/09/27
A28: 25 | B28: 1440/09/28
A29: 26 | B29: 1440/09/29
A30: 27 | B30: 1440/09/30
A31: 28 | B31: 1440/10/01
A32: 29 | B32: 1440/10/02
A33: 30 | B33: 1440/10/03
A34: المجموع | C34: =SUM(C4:C33) -> 0 | D34: 0 | E34: 0 | F34: 0 | G34: 0 | H34: 0 | I34: 0 | J34: 0 | K34: 0
